[Event "Live Chess"]
[Site "Chess.com"]
[Date "2024.06.01"]
[Round "-"]
[White "cymbalshift"]
[Black "defenderalist"]
[Result "0-1"]
[WhiteElo "1594"]
[BlackElo "1548"]
[TimeControl "300"]
[EndTime "13:37:01 PDT"]
[Termination "defenderalist won by resignation"]

1. d4 {[%clk 0:04:58.5]} 1... Nf6 {[%clk 0:04:58.2]} 2. c4 {[%clk 0:04:56]} 2...
e6 {[%clk 0:04:58.1]} 3. Nc3 {[%clk 0:04:54.1]} 3... d5 {[%clk 0:04:57.8]} 4.
Bg5 {[%clk 0:04:51.4]} 4... Nbd7 {[%clk 0:04:54.1]} 5. cxd5 {[%clk 0:04:50.2]}
5... exd5 {[%clk 0:04:53.2]} 6. e3 {[%clk 0:04:49.5]} 6... c6 {[%clk 0:04:49.6]}
7. Bd3 {[%clk 0:04:47.9]} 7... Be7 {[%clk 0:04:48.2]} 8. Nge2 {[%clk 0:04:46.5]}
8... h6 {[%clk 0:04:46.6]} 9. Bh4 {[%clk 0:04:43.5]} 9... g5 {[%clk 0:04:40]}
10. Bg3 {[%clk 0:04:41.8]} 10... Nh5 {[%clk 0:04:39.4]} 11. Qc2 {[%clk
0:04:38.2]} 11... Nxg3 {[%clk 0:04:38.2]} 12. hxg3 {[%clk 0:04:37]} 12... Nb6
{[%clk 0:04:30.3]} 13. O-O-O {[%clk 0:04:26.2]} 13... Be6 {[%clk 0:04:28.5]} 14.
f4 {[%clk 0:04:20.3]} 14... Qc7 {[%clk 0:04:21.3]} 15. f5 {[%clk 0:04:11.3]}
15... Bd7 {[%clk 0:04:20]} 16. Rdf1 {[%clk 0:04:03.4]} 16... O-O-O {[%clk
0:04:18.4]} 17. f6 {[%clk 0:04:02.1]} 17... Bd6 {[%clk 0:04:14.8]} 18. Rh3
{[%clk 0:03:49.7]} 18... Bxh3 {[%clk 0:04:12.7]} 19. gxh3 {[%clk 0:03:46.6]}
19... Bxg3 {[%clk 0:04:11.9]} 20. Bf5+ {[%clk 0:03:27.8]} 20... Kb8 {[%clk
0:04:07.6]} 21. e4 {[%clk 0:03:22.5]} 21... Rhe8 {[%clk 0:03:41.2]} 22. Kb1
{[%clk 0:03:08.1]} 22... dxe4 {[%clk 0:03:26.5]} 23. Nxe4 {[%clk 0:02:58.8]}
23... Bf4 {[%clk 0:03:13.8]} 24. Nxf4 {[%clk 0:02:13.7]} 24... gxf4 {[%clk
0:03:13.7]} 25. Rg1 {[%clk 0:02:13]} 25... Nd5 {[%clk 0:02:56.4]} 26. Rg7 {[%clk
0:02:05]} 26... Ne3 {[%clk 0:02:52.2]} 27. Qb3 {[%clk 0:02:01.4]} 27... Nxf5
{[%clk 0:02:49.6]} 28. Rxf7 {[%clk 0:02:00.4]} 28... Rd7 {[%clk 0:02:39.3]} 29.
Rxd7 {[%clk 0:01:42.1]} 29... Qxd7 {[%clk 0:02:36.2]} 30. Nc5 {[%clk 0:01:41.7]}
30... Qh7 {[%clk 0:02:20.5]} 31. f7 {[%clk 0:01:23.9]} 31... Nxd4+ {[%clk
0:01:41]} 32. Ka1 {[%clk 0:01:18.3]} 32... Re1+ {[%clk 0:01:35.5]} 0-1

[Event "Live Chess"]
[Site "Chess.com"]
[Date "2024.06.01"]
[Round "-"]
[White "Dhaydon19"]
[Black "WelshTiger"]
[Result "1-0"]
[WhiteElo "2673"]
[BlackElo "2531"]
[TimeControl "300"]
[EndTime "13:37:11 PDT"]
[Termination "Dhaydon19 won by resignation"]

1. d3 {[%clk 0:04:58.1]} 1... e5 {[%clk 0:04:55.7]} 2. Nf3 {[%clk 0:04:57.8]}
2... Nc6 {[%clk 0:04:53]} 3. g3 {[%clk 0:04:57.4]} 3... g6 {[%clk 0:04:51.6]} 4.
Bg2 {[%clk 0:04:57]} 4... Bg7 {[%clk 0:04:51.2]} 5. c4 {[%clk 0:04:56.3]} 5...
Nge7 {[%clk 0:04:48.1]} 6. O-O {[%clk 0:04:55.9]} 6... O-O {[%clk 0:04:46.4]} 7.
Nc3 {[%clk 0:04:55.1]} 7... d6 {[%clk 0:04:41.5]} 8. Bd2 {[%clk 0:04:53.2]} 8...
h6 {[%clk 0:04:36.2]} 9. a3 {[%clk 0:04:47.5]} 9... a5 {[%clk 0:04:34.5]} 10.
Rb1 {[%clk 0:04:46.2]} 10... Kh7 {[%clk 0:04:33.5]} 11. b4 {[%clk 0:04:45.5]}
11... axb4 {[%clk 0:04:32.6]} 12. axb4 {[%clk 0:04:45.2]} 12... Be6 {[%clk
0:04:19.9]} 13. e4 {[%clk 0:04:42.6]} 13... f5 {[%clk 0:04:12.6]} 14. b5 {[%clk
0:04:39.8]} 14... Nd4 {[%clk 0:04:09.6]} 15. Nxd4 {[%clk 0:04:38.1]} 15... exd4
{[%clk 0:04:08]} 16. Ne2 {[%clk 0:04:37.6]} 16... c6 {[%clk 0:03:59.4]} 17. Nf4
{[%clk 0:04:33.7]} 17... Bd7 {[%clk 0:03:40.4]} 18. exf5 {[%clk 0:04:29.4]}
18... Bxf5 {[%clk 0:03:36.9]} 19. bxc6 {[%clk 0:04:25.4]} 19... bxc6 {[%clk
0:03:36]} 20. Re1 {[%clk 0:04:23.7]} 20... Qd7 {[%clk 0:03:30.3]} 21. Be4 {[%clk
0:04:08.6]} 21... Bxe4 {[%clk 0:03:16.8]} 22. Rxe4 {[%clk 0:04:06.9]} 22... d5
{[%clk 0:03:13.9]} 23. cxd5 {[%clk 0:04:03.2]} 23... Nxd5 {[%clk 0:03:13.1]} 24.
Ne6 {[%clk 0:03:57.5]} 24... Rf7 {[%clk 0:03:08.5]} 25. Nf4 {[%clk 0:03:39]}
25... Nxf4 {[%clk 0:03:03]} 26. Bxf4 {[%clk 0:03:36.6]} 26... g5 {[%clk
0:03:00.1]} 27. Bd2 {[%clk 0:03:29.9]} 27... Qf5 {[%clk 0:02:59.3]} 28. Be1
{[%clk 0:03:24.1]} 28... Ra2 {[%clk 0:02:56.7]} 29. Qg4 {[%clk 0:03:15.8]} 29...
Qxg4 {[%clk 0:02:16.7]} 30. Rxg4 {[%clk 0:03:13.3]} 30... Re7 {[%clk 0:02:16.4]}
31. Kf1 {[%clk 0:03:09.5]} 31... c5 {[%clk 0:02:14.4]} 32. h4 {[%clk 0:03:00.9]}
32... Kg6 {[%clk 0:02:05.4]} 33. hxg5 {[%clk 0:03:00]} 33... hxg5 {[%clk
0:02:04.3]} 34. Rc1 {[%clk 0:02:42.6]} 34... Re5 {[%clk 0:01:56.1]} 35. f4
{[%clk 0:02:38.4]} 35... Rf5 {[%clk 0:01:55.3]} 36. Rxg5+ {[%clk 0:02:34.9]}
36... Rxg5 {[%clk 0:01:54.5]} 37. fxg5 {[%clk 0:02:34.6]} 37... Bf8 {[%clk
0:01:53.8]} 38. Rb1 {[%clk 0:02:24.2]} 38... Kxg5 {[%clk 0:01:51.5]} 39. Rb8
{[%clk 0:02:22.9]} 39... Bd6 {[%clk 0:01:38.2]} 40. Rd8 {[%clk 0:02:19.3]} 40...
Be5 {[%clk 0:01:35.8]} 41. Rd5 {[%clk 0:02:18]} 41... Kf5 {[%clk 0:01:33.2]} 42.
Rxc5 {[%clk 0:02:14.9]} 42... Ke6 {[%clk 0:01:26.7]} 43. Rb5 {[%clk 0:02:06.4]}
43... Bd6 {[%clk 0:01:15.1]} 44. g4 {[%clk 0:02:02.9]} 44... Rh2 {[%clk
0:01:07.6]} 45. Rb6 {[%clk 0:01:57.1]} 45... Kd5 {[%clk 0:01:06]} 46. Rxd6+
{[%clk 0:01:55]} 46... Kc5 {[%clk 0:00:58.5]} 47. Rf6 {[%clk 0:01:51.8]} 47...
Kd5 {[%clk 0:00:40.9]} 48. Rf5+ {[%clk 0:01:50.1]} 48... Ke6 {[%clk 0:00:40.1]}
49. Rf4 {[%clk 0:01:47.2]} 49... Kd5 {[%clk 0:00:35.4]} 50. g5 {[%clk 0:01:44]}
50... Rh1+ {[%clk 0:00:31.5]} 51. Kf2 {[%clk 0:01:42.5]} 51... Rh2+ {[%clk
0:00:29.2]} 52. Kf3 {[%clk 0:01:41.5]} 1-0

[Event "Live Chess"]
[Site "Chess.com"]
[Date "2024.06.01"]
[Round "-"]
[White "Crowded_House"]
[Black "Delacorta"]
[Result "1-0"]
[WhiteElo "1741"]
[BlackElo "1554"]
[TimeControl "300"]
[EndTime "13:37:22 PDT"]
[Termination "Crowded_House won by checkmate"]

1. d4 {[%clk 0:04:58.7]} 1... e6 {[%clk 0:04:58.7]} 2. Nf3 {[%clk 0:04:55.6]}
2... f5 {[%clk 0:04:58.1]} 3. Bg5 {[%clk 0:04:51.4]} 3... Nf6 {[%clk 0:04:57.3]}
4. Ne5 {[%clk 0:04:43.7]} 4... Be7 {[%clk 0:04:55.9]} 5. e3 {[%clk 0:04:33.7]}
5... O-O {[%clk 0:04:54.4]} 6. Bd3 {[%clk 0:04:30.8]} 6... Ne4 {[%clk
0:04:53.1]} 7. Bxe7 {[%clk 0:04:28.7]} 7... Qxe7 {[%clk 0:04:53]} 8. O-O {[%clk
0:04:20.7]} 8... d6 {[%clk 0:04:52]} 9. Nf3 {[%clk 0:04:16.9]} 9... Bd7 {[%clk
0:04:51.2]} 10. Nbd2 {[%clk 0:04:11.5]} 10... d5 {[%clk 0:04:44.8]} 11. Ne5
{[%clk 0:04:06.8]} 11... Be8 {[%clk 0:04:43.7]} 12. f3 {[%clk 0:04:00.9]} 12...
Nd7 {[%clk 0:04:42.7]} 13. fxe4 {[%clk 0:03:58.4]} 13... fxe4 {[%clk 0:04:42.1]}
14. Be2 {[%clk 0:03:52.1]} 14... Nxe5 {[%clk 0:04:37.9]} 15. Rxf8+ {[%clk
0:03:49.2]} 15... Qxf8 {[%clk 0:04:36.4]} 16. dxe5 {[%clk 0:03:48.3]} 16... Bg6
{[%clk 0:04:25.5]} 17. Qf1 {[%clk 0:03:44.3]} 17... Qe7 {[%clk 0:04:24.1]} 18.
Kh1 {[%clk 0:03:35.7]} 18... Rf8 {[%clk 0:04:22.8]} 19. Qg1 {[%clk 0:03:35.1]}
19... Rf5 {[%clk 0:04:17.5]} 20. Rf1 {[%clk 0:03:26.5]} 20... Qf7 {[%clk
0:04:16.1]} 21. Rxf5 {[%clk 0:03:23.2]} 21... Bxf5 {[%clk 0:04:14.4]} 22. Qf1
{[%clk 0:03:12.1]} 22... Qd7 {[%clk 0:04:13.3]} 23. Nb3 {[%clk 0:03:01.2]} 23...
Qa4 {[%clk 0:04:11.8]} 24. a3 {[%clk 0:02:58.6]} 24... b6 {[%clk 0:04:00.2]} 25.
Nd4 {[%clk 0:02:57.2]} 25... Bg6 {[%clk 0:03:57.9]} 26. Nxe6 {[%clk 0:02:51.8]}
26... Qxc2 {[%clk 0:03:55.8]} 27. Qf8# {[%clk 0:02:50.3]} 1-0

[Event "Live Chess"]
[Site "Chess.com"]
[Date "2024.06.01"]
[Round "-"]
[White "jimwad"]
[Black "educatedlad"]
[Result "1/2-1/2"]
[WhiteElo "1287"]
[BlackElo "1741"]
[TimeControl "300"]
[EndTime "13:37:31 PDT"]
[Termination "Game drawn by repetition"]

1. c4 {[%clk 0:04:58.8]} 1... c5 {[%clk 0:04:58.3]} 2. g3 {[%clk 0:04:57.2]}
2... Nc6 {[%clk 0:04:58.2]} 3. Bg2 {[%clk 0:04:55.6]} 3... g6 {[%clk 0:04:58.1]}
4. Nc3 {[%clk 0:04:54.8]} 4... Bg7 {[%clk 0:04:56.6]} 5. e3 {[%clk 0:04:54.1]}
5... d6 {[%clk 0:04:54.2]} 6. Nge2 {[%clk 0:04:52.6]} 6... e6 {[%clk 0:04:54.1]}
7. O-O {[%clk 0:04:51.1]} 7... Nge7 {[%clk 0:04:54]} 8. d4 {[%clk 0:04:49.9]}
8... O-O {[%clk 0:04:53.9]} 9. d5 {[%clk 0:04:46.1]} 9... exd5 {[%clk
0:04:52.6]} 10. Nxd5 {[%clk 0:04:45.1]} 10... Nxd5 {[%clk 0:04:51.3]} 11. Bxd5
{[%clk 0:04:42.5]} 11... Be6 {[%clk 0:04:50.6]} 12. Bxc6 {[%clk 0:04:29.8]}
12... bxc6 {[%clk 0:04:48.6]} 13. Qc2 {[%clk 0:04:23.7]} 13... Bf5 {[%clk
0:04:46.4]} 14. e4 {[%clk 0:04:19.3]} 14... Bh3 {[%clk 0:04:44.4]} 15. Rd1
{[%clk 0:04:15.8]} 15... Re8 {[%clk 0:04:42.5]} 16. Nf4 {[%clk 0:04:12.1]} 16...
Bg4 {[%clk 0:04:34.8]} 17. Re1 {[%clk 0:04:08.7]} 17... Be5 {[%clk 0:04:31.2]}
18. h3 {[%clk 0:03:53.8]} 18... Bf3 {[%clk 0:04:25.5]} 19. Ng2 {[%clk
0:03:48.2]} 19... Qd7 {[%clk 0:04:23.7]} 20. Kh2 {[%clk 0:03:40.8]} 20... Rab8
{[%clk 0:04:07.4]} 21. Rb1 {[%clk 0:03:38.5]} 21... f5 {[%clk 0:04:01.7]} 22.
exf5 {[%clk 0:03:33.8]} 22... Bxg2 {[%clk 0:04:00.5]} 23. Kxg2 {[%clk
0:03:31.3]} 23... gxf5 {[%clk 0:03:55.9]} 24. Bf4 {[%clk 0:03:25.7]} 24... Bxf4
{[%clk 0:03:44.9]} 25. gxf4 {[%clk 0:03:22.8]} 25... Qg7+ {[%clk 0:03:42.1]} 26.
Kh2 {[%clk 0:03:21.5]} 26... Qd4 {[%clk 0:03:35.3]} 27. Rg1+ {[%clk 0:03:19.9]}
27... Kf7 {[%clk 0:03:33]} 28. Qxf5+ {[%clk 0:03:18.5]} 28... Ke7 {[%clk
0:03:31]} 29. Rbe1+ {[%clk 0:03:12.8]} 29... Kd8 {[%clk 0:03:28.6]} 30. Qg5+
{[%clk 0:03:07.5]} 30... Kc7 {[%clk 0:03:26.5]} 31. Rxe8 {[%clk 0:02:54.6]}
31... Rxe8 {[%clk 0:03:23.2]} 32. Qg7+ {[%clk 0:02:40.6]} 32... Kb6 {[%clk
0:03:22.1]} 33. Qxd4 {[%clk 0:02:39]} 33... cxd4 {[%clk 0:03:21.1]} 34. b3
{[%clk 0:02:38.2]} 34... Re2 {[%clk 0:03:19.8]} 35. Kg3 {[%clk 0:02:35.8]} 35...
d3 {[%clk 0:03:17.4]} 36. Rd1 {[%clk 0:02:34.4]} 36... Rxa2 {[%clk 0:03:12.4]}
37. Rxd3 {[%clk 0:02:32]} 37... Kc5 {[%clk 0:03:11.6]} 38. f5 {[%clk 0:02:28.7]}
38... Re2 {[%clk 0:03:03.2]} 39. f6 {[%clk 0:02:23.9]} 39... Re6 {[%clk
0:03:01.7]} 40. f7 {[%clk 0:02:21.3]} 40... Rg6+ {[%clk 0:02:58.4]} 41. Kh2
{[%clk 0:02:19.5]} 41... Rf6 {[%clk 0:02:56.8]} 42. f4 {[%clk 0:02:04.9]} 42...
Rxf7 {[%clk 0:02:54.9]} 43. Rf3 {[%clk 0:02:04.6]} 43... a5 {[%clk 0:02:52.5]}
44. Kg3 {[%clk 0:02:03.3]} 44... d5 {[%clk 0:02:49.8]} 45. cxd5 {[%clk
0:02:01.2]} 45... cxd5 {[%clk 0:02:49.7]} 46. Kg4 {[%clk 0:01:58.9]} 46... d4
{[%clk 0:02:47.8]} 47. Kg5 {[%clk 0:01:57.4]} 47... Kb4 {[%clk 0:02:45.5]} 48.
f5 {[%clk 0:01:51]} 48... d3 {[%clk 0:02:37.5]} 49. Rxd3 {[%clk 0:01:49.7]}
49... h6+ {[%clk 0:02:30.7]} 50. Kxh6 {[%clk 0:01:48.3]} 50... Rxf5 {[%clk
0:02:29.6]} 51. Kg6 {[%clk 0:01:44.3]} 51... Rc5 {[%clk 0:02:23.2]} 52. h4
{[%clk 0:01:37.4]} 52... Rc6+ {[%clk 0:02:14.8]} 53. Kg5 {[%clk 0:01:34.6]}
53... Rc5+ {[%clk 0:02:13.4]} 54. Kg6 {[%clk 0:01:32.7]} 54... Rc6+ {[%clk
0:02:12.5]} 55. Kg7 {[%clk 0:01:31.4]} 55... Rc5 {[%clk 0:02:10.3]} 56. Kg6
{[%clk 0:01:28.7]} 1/2-1/2

[Event "Live Chess"]
[Site "Chess.com"]
[Date "2024.06.01"]
[Round "-"]
[White "Stanbad1"]
[Black "KGreenGator"]
[Result "1-0"]
[WhiteElo "2652"]
[BlackElo "1761"]
[TimeControl "300"]
[EndTime "13:37:41 PDT"]
[Termination "Stanbad1 won by resignation"]

1. d4 {[%clk 0:04:57.4]} 1... d5 {[%clk 0:04:58.3]} 2. c4 {[%clk 0:04:57.3]}
2... e6 {[%clk 0:04:56.6]} 3. Nc3 {[%clk 0:04:56.8]} 3... Nf6 {[%clk 0:04:54.2]}
4. cxd5 {[%clk 0:04:56.5]} 4... exd5 {[%clk 0:04:52.8]} 5. Bg5 {[%clk
0:04:56.1]} 5... Be7 {[%clk 0:04:50.9]} 6. e3 {[%clk 0:04:55.3]} 6... c6 {[%clk
0:04:49.5]} 7. Bd3 {[%clk 0:04:54.1]} 7... O-O {[%clk 0:04:46.6]} 8. Qc2 {[%clk
0:04:53.4]} 8... g6 {[%clk 0:04:44.5]} 9. Nge2 {[%clk 0:04:51.7]} 9... Nbd7
{[%clk 0:04:39.7]} 10. O-O {[%clk 0:04:50]} 10... b6 {[%clk 0:04:35.2]} 11. f3
{[%clk 0:04:48.7]} 11... Bb7 {[%clk 0:04:34]} 12. e4 {[%clk 0:04:47.8]} 12...
dxe4 {[%clk 0:04:32.5]} 13. fxe4 {[%clk 0:04:47.7]} 13... c5 {[%clk 0:04:31.1]}
14. e5 {[%clk 0:04:46.5]} 14... Nd5 {[%clk 0:04:22.7]} 15. Bxe7 {[%clk
0:04:44.5]} 15... Qxe7 {[%clk 0:04:17.5]} 16. Nxd5 {[%clk 0:04:43.1]} 16... Bxd5
{[%clk 0:04:14.7]} 17. Be4 {[%clk 0:04:42.7]} 17... Bxe4 {[%clk 0:04:08.1]} 18.
Qxe4 {[%clk 0:04:42.6]} 18... cxd4 {[%clk 0:04:04.3]} 19. Nxd4 {[%clk
0:04:37.8]} 19... Qxe5 {[%clk 0:03:59.2]} 20. Qh4 {[%clk 0:04:35.8]} 20... Nc5
{[%clk 0:03:47.1]} 21. Rae1 {[%clk 0:04:32.9]} 21... Qd5 {[%clk 0:03:42.2]} 22.
Nf3 {[%clk 0:04:30.7]} 22... Qxa2 {[%clk 0:03:33.2]} 23. Qh6 {[%clk 0:04:26.5]}
23... Qxb2 {[%clk 0:03:25.4]} 24. Re5 {[%clk 0:04:23.8]} 24... Ne6 {[%clk
0:03:14.5]} 25. Rf2 {[%clk 0:04:19.9]} 25... Qc3 {[%clk 0:02:53.6]} 26. h3
{[%clk 0:04:17.5]} 26... a5 {[%clk 0:02:30.2]} 27. Rfe2 {[%clk 0:04:10.8]} 27...
a4 {[%clk 0:02:19.7]} 28. R2e3 {[%clk 0:04:08.8]} 28... Qb2 {[%clk 0:02:11.9]}
29. Re2 {[%clk 0:04:05.3]} 29... Qc3 {[%clk 0:01:58.1]} 30. R2e3 {[%clk
0:03:58.8]} 30... Qc7 {[%clk 0:01:56.2]} 31. h4 {[%clk 0:03:56.2]} 31... a3
{[%clk 0:01:54]} 32. Re1 {[%clk 0:03:52.2]} 32... a2 {[%clk 0:01:52.7]} 33. Ra1
{[%clk 0:03:51.1]} 33... Qc3 {[%clk 0:01:48.4]} 34. Ree1 {[%clk 0:03:50]} 34...
Nc5 {[%clk 0:01:40.5]} 35. Rec1 {[%clk 0:03:46.7]} 35... Qg7 {[%clk 0:01:38.3]}
36. Qe3 {[%clk 0:03:44.9]} 36... Rfe8 {[%clk 0:01:29.9]} 37. Qc3 {[%clk
0:03:42.2]} 37... Qxc3 {[%clk 0:01:27]} 38. Rxc3 {[%clk 0:03:42.1]} 38... Ne4
{[%clk 0:01:18.8]} 39. Rc2 {[%clk 0:03:40.3]} 39... b5 {[%clk 0:01:13.4]} 40.
Rcxa2 {[%clk 0:03:38.9]} 40... Rxa2 {[%clk 0:01:12.2]} 41. Rxa2 {[%clk
0:03:38.8]} 41... Nc3 {[%clk 0:01:10.6]} 42. Rb2 {[%clk 0:03:35.8]} 42... Re2
{[%clk 0:01:07.2]} 43. Rb3 {[%clk 0:03:33.7]} 43... Rc2 {[%clk 0:01:04]} 44. Kh2
{[%clk 0:03:29.6]} 44... Kg7 {[%clk 0:00:59.1]} 45. Nd4 {[%clk 0:03:26.3]} 45...
Rc1 {[%clk 0:00:56.7]} 46. Rb2 {[%clk 0:03:23.5]} 46... Rb1 {[%clk 0:00:53.3]}
47. Rc2 {[%clk 0:03:21.7]} 47... Nd1 {[%clk 0:00:50.6]} 48. Rc7 {[%clk
0:03:20.2]} 48... Ne3 {[%clk 0:00:47]} 49. Ne6+ {[%clk 0:03:18.8]} 49... Kf6
{[%clk 0:00:45.9]} 50. Ng5 {[%clk 0:03:18.4]} 50... h6 {[%clk 0:00:42.3]} 51.
Rxf7+ {[%clk 0:03:16]} 51... Ke5 {[%clk 0:00:42.2]} 52. Nf3+ {[%clk 0:03:14.8]}
52... Ke4 {[%clk 0:00:40.5]} 53. Nd2+ {[%clk 0:03:12.3]} 53... Kd3 {[%clk
0:00:40.4]} 54. Nxb1 {[%clk 0:03:11.9]} 54... b4 {[%clk 0:00:38.8]} 55. Rb7
{[%clk 0:03:10]} 55... Kc4 {[%clk 0:00:36.7]} 56. Nd2+ {[%clk 0:03:08.7]} 56...
Kc3 {[%clk 0:00:35.2]} 57. Ne4+ {[%clk 0:03:07.7]} 57... Kc4 {[%clk 0:00:33.2]}
58. Kg3 {[%clk 0:03:06.2]} 58... Nd5 {[%clk 0:00:31.4]} 59. h5 {[%clk
0:03:04.8]} 59... g5 {[%clk 0:00:29.4]} 60. Nxg5 {[%clk 0:03:04.3]} 60... b3
{[%clk 0:00:29.1]} 61. Ne4 {[%clk 0:03:02.2]} 61... Ne3 {[%clk 0:00:23.7]} 62.
Nd2+ {[%clk 0:03:00.8]} 1-0

[Event "Live Chess"]
[Site "Chess.com"]
[Date "2024.06.01"]
[Round "-"]
[White "TigerTank70"]
[Black "TedUdale"]
[Result "1-0"]
[WhiteElo "2222"]
[BlackElo "2127"]
[TimeControl "300"]
[EndTime "13:37:41 PDT"]
[Termination "TigerTank70 won by checkmate"]

1. e4 {[%clk 0:04:58.1]} 1... c5 {[%clk 0:04:58.9]} 2. d4 {[%clk 0:04:57]} 2...
cxd4 {[%clk 0:04:57.7]} 3. c3 {[%clk 0:04:56.4]} 3... Nc6 {[%clk 0:04:57.6]} 4.
cxd4 {[%clk 0:04:55]} 4... d5 {[%clk 0:04:57.5]} 5. e5 {[%clk 0:04:53.9]} 5...
Bf5 {[%clk 0:04:55.7]} 6. Nf3 {[%clk 0:04:52.8]} 6... e6 {[%clk 0:04:54.3]} 7.
Nc3 {[%clk 0:04:52]} 7... Bb4 {[%clk 0:04:52.8]} 8. Bd3 {[%clk 0:04:51]} 8...
Nge7 {[%clk 0:04:51.6]} 9. O-O {[%clk 0:04:49.4]} 9... O-O {[%clk 0:04:50.4]}
10. Ng5 {[%clk 0:04:46.6]} 10... h6 {[%clk 0:04:44.8]} 11. Nf3 {[%clk
0:04:44.1]} 11... Qb6 {[%clk 0:04:41.1]} 12. Be3 {[%clk 0:04:42.4]} 12... Rac8
{[%clk 0:04:37.7]} 13. a3 {[%clk 0:04:41.4]} 13... Bxc3 {[%clk 0:04:36.3]} 14.
bxc3 {[%clk 0:04:41.3]} 14... Bxd3 {[%clk 0:04:34.7]} 15. Qxd3 {[%clk
0:04:40.4]} 15... Nf5 {[%clk 0:04:34.6]} 16. Rfb1 {[%clk 0:04:39.1]} 16... Qc7
{[%clk 0:04:30.9]} 17. g4 {[%clk 0:04:37.4]} 17... Nfe7 {[%clk 0:04:29.1]} 18.
Bd2 {[%clk 0:04:35.9]} 18... b6 {[%clk 0:04:28.1]} 19. g5 {[%clk 0:04:35.1]}
19... h5 {[%clk 0:04:27.1]} 20. Nh4 {[%clk 0:04:32.4]} 20... Na5 {[%clk
0:04:17.9]} 21. Qf3 {[%clk 0:04:29.5]} 21... g6 {[%clk 0:04:16.5]} 22. Be1
{[%clk 0:04:23.5]} 22... Nc4 {[%clk 0:04:14.2]} 23. Ng2 {[%clk 0:04:22.1]} 23...
Nf5 {[%clk 0:04:13.1]} 24. Ne3 {[%clk 0:04:17.9]} 24... Ncxe3 {[%clk 0:04:08.9]}
25. fxe3 {[%clk 0:04:16.9]} 25... Qe7 {[%clk 0:04:07.2]} 26. h4 {[%clk
0:04:12.8]} 26... Nxh4 {[%clk 0:04:03.7]} 27. Bxh4 {[%clk 0:04:10.9]} 27... Rxc3
{[%clk 0:04:03.4]} 28. Qf4 {[%clk 0:04:07.8]} 28... Rfc8 {[%clk 0:04:01.6]} 29.
Bf2 {[%clk 0:04:05.5]} 29... Rxa3 {[%clk 0:03:59.8]} 30. Rxa3 {[%clk 0:04:04.1]}
30... Qxa3 {[%clk 0:03:58.6]} 31. Kg2 {[%clk 0:04:01.6]} 31... Rc2 {[%clk
0:03:56.5]} 32. Rf1 {[%clk 0:04:00.3]} 32... Qd3 {[%clk 0:03:51.8]} 33. Kg1
{[%clk 0:03:58.7]} 33... b5 {[%clk 0:03:50.5]} 34. Be1 {[%clk 0:03:57.5]} 34...
b4 {[%clk 0:03:44]} 35. Qxf7+ {[%clk 0:03:56.2]} 35... Kh8 {[%clk 0:03:40.8]}
36. Qf8+ {[%clk 0:03:55.5]} 36... Kh7 {[%clk 0:03:40.3]} 37. Rf7# {[%clk
0:03:54.7]} 1-0

[Event "Live Chess"]
[Site "Chess.com"]
[Date "2024.06.01"]
[Round "-"]
[White "Duke_of_Bebington"]
[Black "Silverback7829"]
[Result "1-0"]
[WhiteElo "1618"]
[BlackElo "976"]
[TimeControl "300"]
[EndTime "13:37:48 PDT"]
[Termination "Duke_of_Bebington won by checkmate"]

1. e4 {[%clk 0:04:58]} 1... e5 {[%clk 0:04:58.2]} 2. Nf3 {[%clk 0:04:57.2]} 2...
Nc6 {[%clk 0:04:56.6]} 3. Bc4 {[%clk 0:04:55.8]} 3... d6 {[%clk 0:04:47.9]} 4.
d3 {[%clk 0:04:38.2]} 4... Nf6 {[%clk 0:04:45.3]} 5. Bg5 {[%clk 0:04:36.9]} 5...
h6 {[%clk 0:04:41.5]} 6. Bh4 {[%clk 0:04:35.1]} 6... Nb4 {[%clk 0:04:33.4]} 7.
c3 {[%clk 0:04:29.2]} 7... Nc6 {[%clk 0:04:29.4]} 8. d4 {[%clk 0:04:26]} 8...
Nxe4 {[%clk 0:04:18.3]} 9. Bxd8 {[%clk 0:04:23.3]} 9... Nxd8 {[%clk 0:04:11.7]}
10. dxe5 {[%clk 0:04:17.5]} 10... dxe5 {[%clk 0:04:08.6]} 11. Nxe5 {[%clk
0:04:12]} 11... Bc5 {[%clk 0:03:58.1]} 12. O-O {[%clk 0:04:00.6]} 12... f6
{[%clk 0:03:37.4]} 13. Qh5+ {[%clk 0:03:54.8]} 13... Ke7 {[%clk 0:03:26.8]} 14.
Ng6+ {[%clk 0:03:47.3]} 14... Kd6 {[%clk 0:03:18.3]} 15. Na3 {[%clk 0:03:35.7]}
15... Rh7 {[%clk 0:03:06]} 16. Rad1+ {[%clk 0:03:31.1]} 16... Kc6 {[%clk
0:03:01.8]} 17. b4 {[%clk 0:03:17.7]} 17... Bxf2+ {[%clk 0:02:52.4]} 18. Rxf2
{[%clk 0:03:16.2]} 18... Nxf2 {[%clk 0:02:49.6]} 19. Qc5# {[%clk 0:03:12.3]} 1-0

[Event "Live Chess"]
[Site "Chess.com"]
[Date "2024.06.01"]
[Round "-"]
[White "GwaryTek"]
[Black "jellhhggffhjjjjjj"]
[Result "1-0"]
[WhiteElo "1928"]
[BlackElo "139"]
[TimeControl "300"]
[EndTime "13:37:54 PDT"]
[Termination "GwaryTek won by checkmate"]

1. d4 {[%clk 0:04:55.5]} 1... d5 {[%clk 0:04:59.9]} 2. c4 {[%clk 0:04:53.7]}
2... e6 {[%clk 0:04:57.9]} 3. Nc3 {[%clk 0:04:51.2]} 3... c6 {[%clk 0:04:55.2]}
4. Nf3 {[%clk 0:04:51.1]} 4... Bb4 {[%clk 0:04:51.6]} 5. Bg5 {[%clk 0:04:51]}
5... Nf6 {[%clk 0:04:49.2]} 6. Qc2 {[%clk 0:04:44.7]} 6... h6 {[%clk 0:04:47]}
7. Bh4 {[%clk 0:04:42]} 7... g5 {[%clk 0:04:45.4]} 8. Bg3 {[%clk 0:04:40]} 8...
Nh5 {[%clk 0:04:38.7]} 9. e3 {[%clk 0:04:30.4]} 9... Nxg3 {[%clk 0:04:36.7]} 10.
hxg3 {[%clk 0:04:28.8]} 10... f5 {[%clk 0:04:35.4]} 11. O-O-O {[%clk 0:04:25.8]}
11... Nd7 {[%clk 0:04:30.7]} 12. g4 {[%clk 0:04:22.1]} 12... Qf6 {[%clk
0:04:25.6]} 13. gxf5 {[%clk 0:04:19.8]} 13... exf5 {[%clk 0:04:24.2]} 14. cxd5
{[%clk 0:04:18.7]} 14... f4 {[%clk 0:04:19.8]} 15. dxc6 {[%clk 0:04:12.3]} 15...
bxc6 {[%clk 0:04:18.4]} 16. Qe4+ {[%clk 0:03:29.9]} 16... Kd8 {[%clk 0:04:07]}
17. Ne5 {[%clk 0:03:27.3]} 17... Nxe5 {[%clk 0:04:04.6]} 18. dxe5+ {[%clk
0:03:27.2]} 18... Bd7 {[%clk 0:03:51.3]} 19. exf6 {[%clk 0:03:23.7]} 19... Bxc3
{[%clk 0:03:49.4]} 20. Qe7+ {[%clk 0:03:20.7]} 20... Kc7 {[%clk 0:03:44.5]} 21.
Rxd7+ {[%clk 0:03:14.7]} 21... Kb6 {[%clk 0:03:41.6]} 22. Rb7+ {[%clk
0:03:10.2]} 22... Ka5 {[%clk 0:03:20.8]} 23. Qa3# {[%clk 0:03:10.1]} 1-0